bitfinex/quotes_ETHUSD_20220213
["timestamp","ask_amount","ask_price","bid_price","bid_amount"]
[1644737597706,1.45774623,2918.4,2918.0,0.90481705]
[1644737597905,1.45774623,2918.3,2918.0,0.90481705]
[1644737598104,3.98689706,2918.7,2918.0,0.90481705]
[1644737598304,1.45767464,2918.6,2918.1,0.01095672]
[1644737599161,1.45767464,2918.6,2918.0,0.90481705]
[1644737599564,1.45767464,2918.6,2918.2,0.01095658]
[1644737600364,3.9898257,2918.9,2918.2,0.01095658]
[1644737600365,4.74424597,2918.5,2918.2,0.01095658]
[1644737600563,4.74424597,2918.5,2917.5,1.0]
[1644737600564,1.45767464,2918.4,2917.5,1.0]
[1644737600763,1.45767464,2918.4,2918.3,0.01095651]
[1644737600964,0.02191301,2918.2,2917.6,0.04383585]
[1644737601163,1.45767464,2918.1,2917.6,0.04383585]
[1644737601364,1.45767464,2918.1,2917.8,1.01315452]
[1644737603006,1.45767464,2918.1,2917.8,1.02411166]
[1644737603410,3.2446498,2918.0,2917.8,1.02411166]
[1644737603606,0.02191301,2918.2,2917.8,1.02411166]
[1644737603807,1.45780152,2918.1,2917.8,1.02411166]
[1644737604010,1.45780152,2918.1,2917.8,1.01315452]
[1644737604212,1.45780152,2918.1,2917.9,0.01095707]
[1644737605211,1.45780152,2918.1,2917.8,1.01315452]
[1644737605412,1.48573048,2918.1,2917.9,0.01095707]
[1644737605610,0.02792896,2918.1,2917.9,0.01095707]
[1644737606411,0.02792896,2918.1,2917.8,1.01315452]
[1644737606656,1.45785217,2918.0,2917.9,0.01095707]
[1644737606854,0.02792896,2918.1,2917.9,0.01095707]
[1644737607655,0.02792896,2918.1,2917.8,1.01315452]
[1644737607873,0.02792896,2918.1,2917.9,0.01095707]
[1644737608757,0.02792896,2918.1,2917.8,1.01315452]
[1644737609157,0.02792896,2918.1,2917.9,0.01095707]
[1644737610062,0.02792896,2918.1,2917.8,1.01315452]
[1644737610262,0.02792896,2918.1,2917.9,0.01095707]
[1644737610509,0.02191301,2918.2,2917.9,0.01095707]
[1644737611314,0.02191301,2918.2,2917.8,1.01315452]
[1644737611315,1.45780045,2918.1,2917.8,1.01315452]
[1644737611510,0.02191301,2918.2,2917.9,0.010957]
[1644737612414,0.02191301,2918.2,2917.8,1.01315452]
[1644737612611,0.02191301,2918.2,2917.9,0.010957]
[1644737613610,0.02191301,2918.2,2917.8,1.01315452]
[1644737613810,0.02191301,2918.2,2917.9,0.010957]
[1644737614010,1.45783434,2918.1,2917.9,0.010957]
[1644737614860,1.45783434,2918.1,2917.8,1.01315452]
[1644737615064,1.45783434,2918.1,2917.9,0.01095707]
[1644737616159,1.45783434,2918.1,2917.8,1.01315452]
[1644737616360,1.45783434,2918.1,2917.9,0.01095707]
[1644737617262,1.45783434,2918.1,2917.8,1.01315452]
[1644737617463,1.45783434,2918.1,2917.9,0.01095707]
[1644737617672,3.25733863,2918.0,2917.9,0.01095707]
[1644737617903,0.04988839,2918.2,2917.9,0.01095707]
[1644737618104,1.45783213,2918.1,2917.9,0.01095707]
[1644737618505,1.45783213,2918.1,2917.4,1.2335]
[1644737618703,1.45783213,2918.1,2917.9,0.01095707]
[1644737619609,1.45783213,2918.1,2917.7,1.11585569]
[1644737619808,1.45783213,2918.1,2917.9,0.01095707]
[1644737620609,4.68373915,2918.1,2917.9,0.01095707]
[1644737620811,1.45783213,2918.0,2917.7,1.11585569]
[1644737621013,1.45783213,2918.0,2917.9,0.01095707]
[1644737621212,1.163335,2918.2,2917.9,0.01095707]
[1644737621414,1.45784269,2918.1,2917.4,1.23829193]
[1644737621654,4.73444433,2918.1,2917.4,1.23829193]
[1644737621854,1.45784269,2918.0,2917.4,1.23829193]
[1644737622055,3.25095298,2918.1,2917.3,3.99398945]
[1644737622255,1.45786503,2918.0,2917.3,5.14793633]
[1644737622457,3.2531773,2917.9,2917.3,0.85743633]
[1644737622657,1.45786503,2918.0,2917.3,0.85394688]
[1644737622862,0.1713,2918.1,2917.4,0.0034295]
[1644737623056,1.45786848,2918.0,2917.4,0.0034295]
[1644737624961,1.45786848,2918.0,2917.4,0.8603095]
[1644737625163,1.163335,2918.2,2917.4,0.8603095]
[1644737625415,1.45783734,2918.1,2917.4,0.8603095]
[1644737626005,1.45783734,2918.1,2917.7,0.01095735]
[1644737626907,1.45783734,2918.1,2917.9,1.07478968]
[1644737627106,1.45783734,2918.1,2917.8,0.01095721]
[1644737627909,3.21628367,2918.0,2917.8,0.01095721]
[1644737628107,1.45783734,2917.9,2917.4,0.0034295]
[1644737628405,1.45783734,2917.9,2917.8,0.01095733]
[1644737629263,0.1713,2918.1,2917.4,0.0034295]
[1644737629264,1.45783734,2918.0,2917.4,0.0034295]
[1644737629461,1.45783734,2917.9,2917.7,0.01095728]
[1644737629661,1.45783734,2917.8,2917.7,0.01095728]
[1644737630567,1.45783734,2918.0,2917.4,0.0034295]
[1644737630761,0.19922896,2918.1,2917.4,0.0034295]
[1644737630762,1.45783734,2917.9,2917.6,0.01095742]
[1644737630962,1.45783734,2917.8,2917.6,0.01095742]
[1644737631161,3.4158248,2918.1,2917.6,0.01095742]
[1644737631361,1.45789493,2918.0,2917.6,0.01095742]
[1644737631764,1.45789493,2918.0,2917.4,0.0034295]
[1644737631965,3.24523886,2917.9,2917.7,0.01095735]
[1644737632166,1.45789493,2917.8,2917.7,0.01095735]
[1644737632765,0.1713,2918.0,2917.4,0.0034295]
[1644737632766,1.45789493,2917.9,2917.4,0.0034295]
[1644737633007,0.1713,2918.0,2917.6,0.01095742]
[1644737633008,4.80351649,2917.8,2917.6,0.01095742]
[1644737633310,1.45789493,2917.7,2917.6,0.01095742]
[1644737633505,0.1713,2918.0,2917.6,0.01095742]
[1644737633506,1.45789493,2917.9,2917.6,0.01095742]
[1644737634010,1.45789493,2917.9,2917.4,0.0034295]
[1644737634211,1.45789493,2917.9,2917.6,0.01095742]
[1644737635210,3.2345315,2917.8,2917.4,0.0034295]
[1644737635412,1.45789493,2917.7,2917.6,0.01095742]
[1644737636515,1.45789493,2917.7,2917.4,0.0034295]
[1644737636756,1.45789493,2917.7,2917.2,1.01807386]
[1644737637956,1.45789493,2917.7,2917.3,0.01095298]
[1644737638157,2.53059064,2917.7,2917.3,0.01438248]
[1644737638360,1.45789493,2917.6,2917.3,0.01095298]
[1644737638756,1.45789493,2917.6,2917.1,0.0034295]
[1644737639158,1.45789493,2917.6,2917.3,0.01095298]
[1644737639959,1.45789493,2917.6,2917.1,0.0034295]
[1644737640162,0.02778969,2917.8,2917.1,0.0034295]
[1644737640409,1.45797461,2917.7,2917.3,0.01095298]
[1644737641213,1.45797461,2917.7,2917.1,0.0034295]
[1644737641413,1.45797461,2917.7,2917.4,0.01095291]
[1644737642411,1.45797461,2917.7,2917.1,0.0034295]
[1644737642611,1.45797461,2917.7,2917.4,0.01095284]
[1644737643712,1.45797461,2917.7,2917.1,0.0034295]
[1644737643912,1.45797461,2917.7,2917.4,0.01095284]
[1644737644859,1.45797461,2917.7,2917.1,0.0034295]
[1644737645061,1.45797461,2917.7,2917.4,0.01095284]
[1644737646071,1.45797461,2917.7,2917.1,0.0034295]
[1644737646265,1.45797461,2917.7,2917.4,0.01095284]
[1644737646464,1.45655842,2917.7,2917.4,0.01095284]
[1644737646666,3.31346787,2917.6,2917.4,0.01095284]
[1644737647065,3.89577556,2917.8,2917.4,0.01095284]
[1644737647268,0.1713,2917.7,2917.1,0.0034295]
[1644737647569,0.1713,2917.7,2917.4,0.01095291]
[1644737647765,0.02778969,2917.8,2917.4,0.01095291]
[1644737647766,3.27541295,2917.8,2917.4,0.01095291]
[1644737648006,3.263972,2917.8,2917.4,0.01095291]
[1644737648409,3.263972,2917.8,2917.1,0.0034295]
[1644737648614,0.1713,2917.7,2917.1,0.0034295]
[1644737648811,0.1713,2917.7,2917.5,0.01095277]
[1644737649612,0.1713,2917.7,2917.1,0.0034295]
[1644737650216,0.1713,2917.7,2917.5,0.01095277]
[1644737650814,0.1713,2917.7,2917.1,0.0034295]
[1644737651014,3.42849399,2917.8,2917.1,0.0034295]
[1644737651220,3.42849399,2917.8,2917.5,0.01095277]
[1644737651414,0.02190554,2917.4,2917.1,0.0034295]
[1644737652057,0.9945932,2917.4,2917.1,0.0034295]
[1644737652455,0.9945932,2917.4,2916.8,2.29124325]
[1644737652456,0.9945932,2917.4,2916.9,0.0034295]
[1644737653060,3.28357858,2917.3,2916.9,0.0034295]
[1644737653762,3.28357858,2917.3,2917.0,0.00407594]
[1644737654362,3.28357858,2917.3,2916.6,0.0034295]
[1644737654762,3.28357858,2917.3,2917.0,0.00407594]
[1644737655708,3.26887326,2917.3,2916.6,0.0034295]
[1644737655910,1.02240794,2917.4,2917.0,0.0109534]
[1644737656413,3.26003061,2917.3,2917.0,0.0109534]
[1644737656809,3.26003061,2917.3,2916.6,0.0034295]
[1644737657108,3.26003061,2917.3,2917.0,0.0109534]
[1644737657307,3.25198412,2917.3,2917.0,0.0109534]
[1644737657508,3.2322803,2917.3,2917.0,0.0109534]
[1644737658110,3.2322803,2917.3,2916.6,0.0034295]
[1644737658314,0.1713,2917.3,2917.0,0.0109534]
[1644737658510,3.41480079,2917.3,2917.0,0.0109534]
[1644737658712,3.42603059,2917.3,2917.0,0.0109534]
[1644737659163,0.1713,2917.3,2916.6,0.0034295]
[1644737659567,0.1713,2917.3,2917.0,0.0109534]
[1644737660174,3.44822743,2917.3,2917.0,0.0109534]
[1644737660368,3.44822743,2917.3,2916.6,0.04724968]
[1644737660570,3.40157979,2917.3,2916.6,0.0034295]
[1644737660768,0.1713,2917.3,2917.0,0.0109534]
[1644737660969,3.45550316,2917.3,2917.0,0.0109534]
[1644737661268,3.45942172,2917.3,2917.0,0.0109534]
[1644737661667,3.45942172,2917.3,2916.6,0.0034295]
[1644737661867,3.28812172,2917.3,2917.0,0.0109534]
[1644737662069,1.02240794,2917.4,2917.0,0.0109534]
[1644737662270,3.27209698,2917.3,2917.0,0.0109534]
[1644737662469,4.12719698,2917.3,2917.0,0.0109534]
[1644737662919,4.12719698,2917.3,2916.6,0.0034295]
[1644737663119,4.12719698,2917.3,2917.0,0.0109534]
[1644737663320,0.8551,2917.3,2917.0,0.0109534]
[1644737663522,4.0876388,2917.3,2917.0,0.0109534]
[1644737663820,4.0914782,2917.3,2917.0,0.0109534]
[1644737664023,4.11922066,2917.3,2916.6,0.0034295]
[1644737664225,0.8551,2917.3,2917.0,0.0109534]
[1644737664823,4.09441347,2917.3,2917.0,0.0109534]
[1644737665226,4.09441347,2917.3,2916.6,0.0034295]
[1644737665429,4.26571347,2917.3,2916.6,0.0034295]
[1644737665625,4.26571347,2917.3,2917.0,0.0109534]
[1644737666426,4.26571347,2917.3,2916.6,0.04724968]
[1644737666427,1.45824467,2917.2,2916.6,0.0034295]
[1644737667056,1.45824467,2917.2,2916.6,0.96758191]
[1644737667258,1.45824467,2917.2,2916.7,0.0034295]
[1644737669062,1.45824467,2917.2,2916.8,0.01094915]
[1644737670067,1.45824467,2917.2,2916.7,0.0034295]
[1644737670417,1.45824467,2917.2,2916.9,0.01094908]
[1644737670608,1.49520714,2917.2,2916.9,0.01094908]
[1644737670906,0.03696247,2917.2,2916.9,0.01094908]
[1644737671312,0.03696247,2917.2,2916.7,0.0034295]
[1644737671511,0.03696247,2917.2,2916.9,0.01094901]
[1644737672525,0.03696247,2917.2,2916.7,0.0034295]
[1644737672715,0.03696247,2917.2,2916.9,0.01094901]
[1644737673716,0.03696247,2917.2,2916.7,0.0034295]
[1644737673915,0.03696247,2917.2,2916.9,0.01094901]
[1644737674858,0.03696247,2917.2,2916.7,0.0034295]
[1644737675060,0.03696247,2917.2,2916.9,0.01094901]
[1644737676162,0.03696247,2917.2,2916.7,0.0034295]
[1644737676364,0.03696247,2917.2,2916.9,0.01094901]
[1644737677168,0.03696247,2917.2,2916.7,0.0034295]
[1644737677566,1.45819301,2917.1,2916.9,0.01094901]
[1644737677764,0.03696247,2917.2,2916.9,0.01094901]
[1644737678309,1.45817949,2917.1,2916.9,0.01094901]
[1644737678511,1.45817949,2917.1,2916.7,0.0034295]
[1644737678708,1.45817949,2917.1,2916.9,0.01094901]
[1644737679720,1.45817949,2917.1,2916.7,0.0034295]
[1644737679914,1.45817949,2917.1,2916.9,0.01094908]
[1644737680915,1.45817949,2917.1,2916.8,0.0034295]
[1644737681118,0.03696247,2917.2,2916.8,0.0034295]
[1644737684766,0.03696247,2917.2,2916.9,1.08137189]
[1644737685617,0.03696247,2917.2,2916.9,1.07041796]
[1644737685819,0.19320554,2917.4,2916.9,1.57737182]
[1644737686023,1.45809175,2917.3,2917.0,0.0034295]
[1644737687223,1.45809175,2917.3,2917.0,0.01438322]
[1644737688126,1.45809175,2917.3,2917.0,0.0034295]
[1644737688325,1.45809175,2917.3,2917.0,0.01438322]
[1644737689363,1.45809175,2917.3,2917.0,0.0034295]
[1644737689562,1.45809175,2917.3,2917.0,0.01438322]
[1644737690362,1.45809175,2917.3,2917.0,1.01894195]
[1644737690562,1.45809175,2917.3,2917.0,1.00798823]
[1644737690765,1.45809175,2917.3,2917.0,1.01894195]
[1644737690962,1.45809175,2917.3,2917.0,0.01438322]
[1644737691562,1.45809175,2917.3,2917.0,0.0034295]
[1644737691966,1.45809175,2917.3,2917.0,0.01438322]
[1644737692935,1.45809175,2917.3,2917.0,0.0034295]
[1644737693137,1.45809175,2917.3,2917.0,0.01438322]
[1644737694141,1.45809175,2917.3,2917.0,0.0034295]
[1644737694436,1.45809175,2917.3,2917.0,0.01438322]
[1644737695241,1.45809175,2917.3,2917.0,0.0034295]
[1644737695437,1.45809175,2917.3,2917.0,0.01438322]
[1644737696437,1.45809175,2917.3,2917.0,0.0034295]
[1644737696660,1.45809175,2917.3,2917.0,0.01438322]
[1644737697663,1.45809175,2917.3,2917.0,0.0034295]
[1644737697867,1.45809175,2917.3,2917.0,0.01438322]
[1644737698269,1.62939175,2917.3,2917.0,0.01438322]
[1644737698569,1.45809175,2917.2,2917.0,0.01438322]
[1644737698771,1.45809175,2917.2,2916.8,0.0034295]
[1644737699070,1.45809175,2917.2,2917.0,0.01095379]
[1644737700071,1.45809175,2917.2,2916.8,0.0034295]
[1644737700272,1.45809175,2917.2,2917.0,0.01095379]
[1644737701320,1.45809175,2917.2,2916.8,0.0034295]
[1644737701517,1.45809175,2917.2,2917.0,0.01095379]
[1644737702517,1.45809175,2917.2,2916.8,0.0034295]
[1644737702718,1.45809175,2917.2,2917.0,0.01095379]
[1644737703616,1.45809175,2917.2,2916.8,0.0034295]
[1644737703819,1.45809175,2917.2,2917.0,0.01095379]
[1644737704971,1.45809175,2917.2,2916.8,0.3034295]
[1644737705174,1.45809175,2917.2,2917.0,0.01095379]
[1644737705374,1.45809175,2917.2,2917.1,0.496]
[1644737705681,0.0370244,2917.3,2917.1,0.796]
[1644737705873,0.01739959,2917.3,2917.1,0.796]
[1644737706076,0.01739959,2917.3,2917.1,1.096]
[1644737706376,0.01739959,2917.3,2917.1,1.10695365]
[1644737707378,0.01739959,2917.3,2917.1,1.096]
[1644737707575,0.01739959,2917.3,2917.1,1.10674827]
[1644737708420,0.01739959,2917.3,2917.1,1.096]
[1644737708618,0.01739959,2917.3,2917.1,1.10674827]
[1644737709619,0.01739959,2917.3,2917.1,1.096]
[1644737710120,0.01739959,2917.3,2917.1,1.96361827]
[1644737710724,0.01390554,2917.2,2917.1,1.10674827]
[1644737710920,0.01390554,2917.2,2917.1,1.096]
[1644737711219,0.01390554,2917.2,2917.1,1.10638425]
[1644737711866,0.01390554,2917.2,2917.1,2.10638425]
[1644737712066,0.01390554,2917.2,2917.1,2.096]
[1644737712668,0.01390554,2917.2,2917.1,1.496]
[1644737712971,0.01390554,2917.2,2917.1,0.496]
[1644737714172,0.01390554,2917.2,2917.1,0.796]
[1644737714372,0.01390554,2917.2,2917.1,0.496]
[1644737716220,0.01390554,2917.2,2917.0,1.44943369]
[1644737716420,0.01390554,2917.2,2917.0,1.74943369]
[1644737716919,0.01390554,2917.2,2917.0,1.4390295]
[1644737717120,0.01390554,2917.2,2917.0,1.74943375]
[1644737717321,0.01390554,2917.2,2917.1,1.35287]
[1644737717520,0.01390554,2917.2,2917.1,0.496]
[1644737717820,0.01390554,2917.2,2917.1,1.496]
[1644737718020,0.01390554,2917.2,2917.1,0.496]
[1644737718222,0.01390554,2917.2,2917.1,1.496]
[1644737718422,0.01390554,2917.2,2917.1,0.496]
[1644737720568,0.01390554,2917.2,2917.1,1.35287]
[1644737720968,0.01390554,2917.2,2917.1,2.35287]
[1644737721174,0.01390554,2917.2,2917.1,1.35287]
[1644737721368,0.01390554,2917.2,2917.1,2.35287]
[1644737721567,0.01390554,2917.2,2917.1,1.35287]
[1644737721768,0.01390554,2917.2,2917.1,2.35287]
[1644737721969,0.01390554,2917.2,2917.1,0.496]
[1644737722169,0.01390554,2917.2,2917.1,1.496]
[1644737722569,0.01390554,2917.2,2917.1,0.496]
[1644737722770,0.01390554,2917.2,2917.1,1.496]
[1644737723015,0.01390554,2917.2,2917.1,0.496]
[1644737723312,0.01390554,2917.2,2917.1,1.496]
[1644737723512,0.01390554,2917.2,2917.1,0.496]
[1644737723715,0.01390554,2917.2,2917.1,1.496]
[1644737723913,0.01390554,2917.2,2917.1,0.496]
[1644737727166,0.01232442,2917.2,2917.1,0.496]
[1644737732819,0.01232442,2917.2,2917.1,0.796]
[1644737733018,0.01232442,2917.2,2917.1,1.096]
[1644737741324,0.01232442,2917.2,2917.1,0.496]
[1644737743268,0.01232442,2917.2,2917.1,0.796]
[1644737743468,0.01232442,2917.2,2917.1,1.096]
[1644737743668,0.01232442,2917.2,2917.1,2.096]
[1644737744870,0.01232442,2917.2,2917.1,0.496]
[1644737745272,0.01232442,2917.2,2917.1,0.796]
[1644737746115,0.01232442,2917.2,2917.1,0.496]
[1644737746318,1.47039962,2917.2,2917.1,0.496]
[1644737746716,0.01232442,2917.2,2917.1,0.496]
[1644737747917,0.01073691,2917.2,2917.1,0.496]
[1644737748321,1.46880727,2917.2,2917.1,0.496]
[1644737748918,1.46880727,2917.2,2917.0,0.01041586]
[1644737749181,0.01073691,2917.2,2917.0,0.01041586]
[1644737749375,0.01073691,2917.2,2916.9,0.6]
[1644737749575,0.01073691,2917.2,2917.0,0.01041592]
[1644737750580,0.01073691,2917.2,2916.9,0.6]
[1644737750782,0.01577911,2917.2,2917.0,0.01041592]
[1644737751781,0.01577911,2917.2,2916.9,0.6]
[1644737751982,0.01577911,2917.2,2917.0,0.01041593]
[1644737752381,0.01577911,2917.2,2917.0,0.86731593]
[1644737752585,0.01577911,2917.2,2917.0,0.01041593]
[1644737752782,0.01577911,2917.2,2917.0,1.01041593]
[1644737753015,0.01577911,2917.2,2917.0,1.0]
[1644737753215,0.01577911,2917.2,2917.0,1.01041593]
[1644737753513,0.01577911,2917.2,2917.1,20.01]
[1644737753713,0.01577911,2917.2,2917.1,20.61]
[1644737754015,0.01041274,2917.8,2917.2,4.90676]
[1644737754219,1.45792615,2917.7,2917.3,1.096]
[1644737754421,1.45792615,2917.6,2917.3,2.096]
[1644737754617,1.45792615,2917.5,2917.3,2.096]
[1644737754824,0.01041286,2917.8,2917.4,0.99525135]
[1644737755021,1.45786741,2917.7,2917.5,0.496]
[1644737755227,1.45786741,2917.7,2917.5,0.796]
[1644737755724,1.45786741,2917.6,2917.5,1.096]
[1644737756223,1.45786741,2917.7,2917.5,1.09505912]
[1644737756423,1.45786741,2917.6,2917.5,1.09505912]
[1644737756677,1.45786741,2917.7,2917.5,1.09505912]
[1644737756870,1.45786741,2917.6,2917.5,1.09505912]
[1644737757269,1.45786741,2917.7,2917.5,1.09505912]
[1644737757470,1.45786741,2917.6,2917.5,1.09505912]
[1644737757671,1.45786741,2917.6,2917.5,1.92722523]
[1644737757874,1.45786741,2918.0,2917.5,22.93722523]
[1644737758072,0.0104138,2917.8,2917.7,0.85676]
[1644737758271,1.46828121,2917.8,2917.7,1.15676]
[1644737758870,1.46828121,2917.8,2917.7,0.85676]
[1644737759071,1.45786741,2917.8,2917.7,0.85676]
[1644737759272,0.00389016,2918.1,2917.7,0.85676]
[1644737759273,0.01041406,2917.9,2917.7,0.85676]
[1644737759472,1.45786741,2917.8,2917.7,0.85676]
[1644737760521,1.45786741,2917.8,2917.7,1.15676]
[1644737760723,1.45786741,2917.8,2917.7,0.85676]
[1644737761020,1.45786741,2917.8,2917.7,1.36262924]
[1644737762824,1.46175757,2918.1,2917.7,1.36262924]
[1644737763024,0.01041405,2917.9,2917.7,1.36262924]
[1644737763221,1.45786741,2917.8,2917.7,1.36262924]
[1644737764023,0.01041405,2917.9,2917.7,1.36262924]
[1644737764271,1.45786741,2917.8,2917.7,1.36262924]
[1644737765269,0.00389016,2918.3,2917.7,1.36262924]
[1644737765270,0.01041405,2917.9,2917.7,1.36262924]
[1644737765469,1.45786741,2917.8,2917.7,1.36262924]
[1644737766368,0.01041405,2917.9,2917.7,1.36262924]
[1644737766571,1.45786741,2917.8,2917.7,1.36262924]
[1644737766771,1.45786741,2917.8,2917.7,0.85676]
[1644737766974,1.45786741,2917.8,2917.5,0.5514004]
[1644737766975,1.45786741,2917.8,2917.5,0.0554004]
[1644737767575,1.45786741,2917.7,2917.5,0.0554004]
[1644737767773,1.62916741,2917.7,2917.5,0.0554004]
[1644737768012,1.45786741,2917.6,2917.5,0.0554004]
[1644737769219,1.45786741,2917.7,2917.5,0.0554004]
[1644737770423,1.45786741,2917.7,2917.4,0.01041564]
[1644737770623,0.87340205,2917.6,2917.4,0.01041564]
[1644737770827,1.45786741,2917.5,2917.4,0.01041564]
[1644737771025,1.45786741,2917.5,2917.3,0.05571936]
[1644737771223,1.45786741,2917.5,2917.4,0.0104154]
[1644737772272,1.45786741,2917.5,2917.3,0.05571936]
[1644737772468,1.45786741,2917.5,2917.3,0.06613482]
[1644737773472,1.45786741,2917.5,2917.3,0.05571936]
[1644737773668,1.45786741,2917.5,2917.3,0.0661349]
[1644737774678,1.45786741,2917.5,2917.3,0.05571936]
[1644737774976,1.45786741,2917.5,2917.3,0.0661349]
[1644737775820,1.45786741,2917.5,2916.9,0.496]
[1644737775821,1.45786741,2917.5,2916.9,0.6673]
[1644737776024,1.45786741,2917.5,2917.3,0.01041554]
[1644737777026,1.45786741,2917.5,2916.9,1.67486403]
[1644737777224,1.45786741,2917.5,2917.3,0.01041554]
[1644737778225,1.45786741,2917.5,2916.6,0.0034295]
[1644737778426,1.45786741,2917.5,2917.3,0.01041554]
[1644737778629,1.62916741,2917.5,2917.3,0.01041554]
[1644737778827,1.45786741,2917.4,2917.3,0.01041554]
[1644737779470,1.45786741,2917.4,2916.6,0.0034295]
[1644737779669,1.45786741,2917.4,2917.2,0.0104156]
[1644737780570,1.45786741,2917.4,2916.9,0.0034295]
[1644737780774,1.45786741,2917.4,2917.2,0.01041566]
[1644737781773,1.45786741,2917.4,2916.9,0.0034295]
[1644737781974,1.45786741,2917.4,2917.2,0.01041566]
[1644737783014,1.45786741,2917.4,2916.9,0.0034295]
[1644737783216,1.45786741,2917.4,2917.2,0.01041566]
[1644737784119,1.45786741,2917.4,2916.9,0.0034295]
[1644737784325,1.45786741,2917.4,2917.2,0.01041566]
[1644737785424,1.45786741,2917.4,2916.9,0.0034295]
[1644737785624,1.45786741,2917.3,2917.2,0.01041567]
[1644737785823,0.1713,2917.6,2917.2,0.01041567]
[1644737786024,1.45786741,2917.5,2917.2,0.01041567]
[1644737786678,1.45786741,2917.5,2916.9,0.0034295]
[1644737786865,1.45786741,2917.5,2917.2,0.01041561]
[1644737787869,1.45786741,2917.5,2916.9,0.0034295]
[1644737788069,1.45786741,2917.5,2917.2,0.01041561]
[1644737789070,1.45786741,2917.5,2916.9,0.0034295]
[1644737789274,1.45786741,2917.5,2917.2,0.0104156]
[1644737790276,1.45786741,2917.5,2916.9,0.0034295]
[1644737790517,1.45786741,2917.5,2917.2,0.0104156]
[1644737791320,1.45786741,2917.5,2916.9,0.0034295]
[1644737791526,1.45786741,2917.5,2917.2,0.0104156]
[1644737792521,1.45786741,2917.5,2916.9,0.0034295]
[1644737792828,1.45786741,2917.5,2917.2,0.0104156]
[1644737793735,1.45786741,2917.5,2916.9,0.0034295]
[1644737793924,1.45786741,2917.5,2917.2,0.0104156]
[1644737794968,1.45786741,2917.5,2916.9,0.0034295]
[1644737795167,1.45786741,2917.5,2917.2,0.0104156]
[1644737796168,1.45786741,2917.5,2916.9,0.0034295]
[1644737796370,1.45786741,2917.5,2917.2,0.0104156]
[1644737797371,1.45786741,2917.5,2916.9,0.0034295]
[1644737797570,1.45786741,2917.5,2917.2,0.0104156]
[1644737798418,1.45786741,2917.4,2917.2,0.8673556]
[1644737798625,0.00389016,2917.6,2917.3,3.11329787]
[1644737798818,1.3175,2918.0,2917.3,3.11329787]
[1644737798819,0.18171331,2917.8,2917.3,3.11329787]
[1644737799118,0.01041331,2917.8,2917.3,3.11329787]
[1644737799723,0.00389016,2917.9,2917.3,3.11329787]
[1644737799922,0.01041378,2917.8,2917.4,0.01041554]
[1644737800924,0.00389016,2917.9,2917.3,3.13099747]
[1644737801125,0.00389016,2917.9,2917.3,3.43099747]
[1644737801326,0.00389016,2917.9,2917.3,3.13099747]
[1644737801525,0.0104139,2917.8,2917.4,0.01041566]
[1644737802187,0.00389016,2917.9,2917.3,3.3686771]
[1644737802384,0.0104139,2917.8,2917.4,0.01041566]
[1644737803390,0.00389016,2917.9,2917.2,2.65294]
[1644737803586,0.01041388,2917.8,2917.4,0.01041564]
[1644737804600,0.00389016,2917.9,2917.2,0.496]
[1644737804792,0.01041388,2917.8,2917.4,0.01041564]
[1644737805816,0.00389016,2917.9,2917.5,0.0415503]
[1644737806017,0.01041388,2917.8,2917.5,0.0415503]
[1644737807023,0.00389016,2917.9,2917.5,0.0415503]
[1644737807227,0.010414,2917.8,2917.5,0.0415503]
[1644737808225,0.00389016,2917.9,2917.5,0.0415503]
[1644737808526,0.010414,2917.8,2917.5,0.0415503]
[1644737809031,0.010414,2917.8,2917.5,0.8984103]
[1644737809475,0.00389016,2917.9,2917.5,0.8984103]
[1644737809674,0.010414,2917.8,2917.5,0.8984103]
[1644737809878,0.010414,2917.8,2917.5,0.0415503]
[1644737810676,0.00389016,2918.1,2917.5,0.0415503]
[1644737810875,0.010414,2917.8,2917.4,0.01041576]
[1644737811878,3.96896981,2918.1,2917.2,0.496]
[1644737812076,0.01041388,2917.8,2917.4,0.01041563]
[1644737812916,0.00389016,2917.9,2917.2,0.496]
[1644737813318,0.01041388,2917.8,2917.4,0.01041563]
[1644737814121,3.44927686,2917.9,2917.2,0.496]
[1644737814323,0.01041388,2917.8,2917.4,0.01041563]
[1644737815325,3.62057686,2917.9,2917.2,0.496]
[1644737815724,0.01041388,2917.8,2917.4,0.01041564]
[1644737816676,3.22726647,2917.9,2917.2,0.496]
[1644737816868,0.01041388,2917.8,2917.4,0.01041564]
[1644737817775,0.00389016,2917.9,2917.2,0.496]
[1644737817969,0.01041388,2917.8,2917.4,0.01041564]
[1644737818571,1.4580511,2917.7,2917.4,0.01041564]
[1644737818972,1.4580511,2917.7,2917.2,0.496]
[1644737819275,1.46045281,2917.6,2917.4,0.01041552]
[1644737819475,1.4580511,2917.5,2917.4,0.01041552]
[1644737819674,1.4580511,2917.7,2917.4,0.01041552]
[1644737820174,1.4580511,2917.7,2917.2,0.496]
[1644737820421,1.46045281,2917.6,2917.4,0.01041552]
[1644737820616,1.4580511,2917.5,2917.4,0.01041552]
[1644737821018,1.4580511,2917.7,2917.4,0.01041552]
[1644737821217,1.4580511,2917.6,2917.4,0.01041552]
[1644737821417,1.4580511,2917.5,2917.2,2.20965]
[1644737821618,0.00240171,2917.6,2917.4,0.01041552]
[1644737821822,1.45802403,2917.7,2917.4,0.01041552]
[1644737822620,1.45802403,2917.7,2917.2,2.20965]
[1644737822924,1.46042574,2917.6,2917.4,0.01041553]
[1644737823123,1.45802403,2917.5,2917.4,0.01041553]
[1644737823823,1.45802403,2917.5,2917.2,22.21965]
[1644737824024,1.45802594,2917.4,2917.3,0.01041547]
[1644737824575,0.01041353,2917.8,2917.4,0.85681]
[1644737824771,1.45798894,2917.7,2917.4,0.85681]
[1644737825173,0.01041389,2917.8,2917.4,0.86722564]
[1644737825476,1.45798894,2917.7,2917.4,0.86722564]
[1644737826375,1.45798894,2917.7,2917.4,0.86722553]
[1644737826577,1.45798894,2917.7,2917.5,3.3634745]
[1644737826779,1.45798894,2917.7,2917.6,21.01]
[1644737826975,0.00240171,2918.2,2917.6,21.506]
[1644737827177,0.00240171,2918.3,2917.8,0.85662]
[1644737827375,0.00240171,2918.5,2917.9,0.496]
[1644737827576,1.31477219,2918.6,2917.9,1.63366177]
[1644737827775,1.3171739,2918.6,2917.9,2.73448226]
[1644737828217,1.3171739,2918.6,2917.9,2.43448226]
[1644737828417,1.96865566,2918.6,2917.9,2.43448226]
[1644737828617,1.79735566,2918.6,2917.9,2.43448226]
[1644737829016,1.1458739,2918.6,2917.9,2.43448226]
[1644737829220,1.3171739,2918.6,2917.9,2.43448226]
[1644737830022,0.01095109,2918.4,2917.9,2.43448226]
[1644737830222,0.01095109,2918.4,2917.9,1.59682049]
[1644737830920,1.1458739,2918.6,2917.9,1.59682049]
[1644737831121,1.1458739,2918.6,2917.9,2.52370866]
[1644737831122,0.01095123,2918.3,2917.9,2.52370866]
[1644737831322,0.01095123,2918.3,2917.9,1.50178838]